fUSD/lending_fUSD_20240412
["ID","MTS","AMOUNT","RATE_DAILY","PERIOD"]
[322275865,1712927444347,-154.58,0.000333,2]
[322275866,1712927444357,-1137.11112217,0.000335,2]
[322275867,1712927444368,-1675.35,0.000335,2]
[322275868,1712927444377,-1675.35,0.000335,2]
[322275869,1712927444387,-1675.35,0.000335,2]
[322275870,1712927444397,-1675.35,0.000335,2]
[322275871,1712927444407,-1675.35,0.000335,2]
[322275872,1712927444417,-1675.35,0.000335,2]
[322275873,1712927444426,-1675.35,0.000335,2]
[322275874,1712927444437,-1675.35,0.000335,2]
[322275875,1712927444446,-1675.35,0.000335,2]
[322275876,1712927444456,-1675.35,0.000335,2]
[322275877,1712927444466,-1675.35,0.000335,2]
[322275878,1712927444476,-1675.35,0.000335,2]
[322275879,1712927444485,-1675.35,0.000335,2]
[322275880,1712927444495,-1675.35,0.000335,2]
[322275881,1712927444505,-1675.35,0.000335,2]
[322275882,1712927444515,-1675.35,0.000335,2]
[322275883,1712927444525,-1675.35,0.000335,2]
[322275884,1712927444534,-1675.35,0.000335,2]
[322275885,1712927444544,-1675.35,0.000335,2]
[322275886,1712927444554,-1675.35,0.000335,2]
[322275887,1712927444563,-155.67762889,0.00033514,7]
[322275888,1712927444573,-153.24126342,0.00033582,7]
[322275889,1712927444583,-541.08,0.00033761,2]
[322275890,1712927444592,-150.91,0.00033844,2]
[322275891,1712927444602,-154.26775918,0.00033973,7]
[322275892,1712927444611,-656.21470242,0.00034,2]
[322275893,1712927444629,-1067.64295558,0.00034,2]
[322275894,1712927444639,-155.67762889,0.00034011,7]
[322275895,1712927444649,-154.53423204,0.00034013,7]
[322275896,1712927444659,-1013.12,0.000341,2]
[322275897,1712927444668,-317.26,0.000341,2]
[322275898,1712927444677,-166.81018583,0.00034107,7]
[322275899,1712927444897,-552.0,0.00034246,2]
[322275900,1712927444908,-153.99568916,0.00034291,7]
[322275901,1712927444918,-151.0566262,0.00034381,7]
[322275902,1712927444933,-155.67762889,0.00034727,7]
[322275903,1712927444945,-156.33363119,0.00034782,7]
[322275904,1712927444955,-5094.89142222,0.000348,14]
[322275905,1712927445207,-15.42812067,0.000348,14]
[322275932,1712927445473,-150.92,0.00029,2]
[322275934,1712927445484,-150.92,0.00029,2]
[322275936,1712927445493,-150.92,0.00029,2]
[322275938,1712927445503,-150.92,0.00029,2]
[322275941,1712927445513,-150.92,0.00029,2]
[322275944,1712927445522,-150.92,0.00029,2]
[322275947,1712927445531,-150.92,0.00029,2]
[322275948,1712927445541,-150.92,0.00029,2]
[322275950,1712927445550,-150.92,0.00029,2]
[322275952,1712927445559,-150.92,0.00029,2]
[322275953,1712927445568,-150.92,0.00029,2]
[322275955,1712927445577,-150.92,0.00029,2]
[322275957,1712927445587,-177.71150843,0.000348,14]
[322275960,1712927445603,-300.0,0.000348,14]
[322275964,1712927445619,-5744.99207489,0.000348,14]
[322275966,1712927445631,-2831.89248,0.000348,14]
[322275967,1712927445643,-1112.76134163,0.000348,14]
[322275969,1712927445652,-150.91,0.00034811,2]
[322275971,1712927445662,-209.06126087,0.00034918,4]
[322275973,1712927445671,-4814.8966987,0.00034918,4]
[322275974,1712927445680,-155.0,0.00034918,2]
[322275976,1712927445691,-155.0,0.00034918,2]
[322275978,1712927445701,-600.0,0.00035,3]
[322275980,1712927445710,-187.72684444,0.00035,120]
[322275982,1712927445718,-658.62,0.00035,2]
[322275983,1712927445727,-504.27,0.00035,2]
[322275984,1712927445736,-342.34435101,0.00035111,2]
[322275985,1712927445745,-151.0,0.00035231,2]
[322275986,1712927445755,-154.57743464,0.00035265,7]
[322275987,1712927445764,-517.11,0.00035288,15]
[322275989,1712927445773,-275.5,0.000353,2]
[322275991,1712927445783,-155.67762889,0.00035334,7]
[322275993,1712927445792,-10953.556771,0.00035371,2]
[322275995,1712927445802,-154.781343,0.00035371,2]
[322275997,1712927445811,-1013.12,0.00035405,2]
[322275999,1712927445820,-151.05662622,0.00035442,7]
[322276001,1712927445830,-154.95930831,0.0003546,7]
[322276002,1712927445839,-154.14042621,0.00035501,7]
[322276005,1712927445848,-7039.76998719,0.00035519,2]
[322276006,1712927445857,-810.60952156,0.00035519,2]
[322276008,1712927445866,-6000.0,0.00035519,2]
[322276010,1712927445876,-2500.0,0.00035519,2]
[322276012,1712927445885,-2316.8943038,0.00035519,2]
[322276013,1712927445894,-7346.73655462,0.00035519,2]
[322276014,1712927445904,-1600.17624708,0.00035519,2]
[322276015,1712927445913,-9277.65952855,0.00035519,2]
[322276016,1712927445924,-1767.2250312,0.00035519,2]
[322276017,1712927445933,-1295.45983032,0.00035519,2]
[322276018,1712927445947,-4898.12585004,0.00035519,2]
[322276019,1712927445956,-2722.97231334,0.00035519,2]
[322276020,1712927445969,-985.158596,0.00035519,2]
[322276021,1712927445997,-2912.1544861,0.00035519,2]
[322276022,1712927446010,-2686.19743138,0.00035519,2]
[322276023,1712927446023,-196.4035643,0.00035519,2]
[322276024,1712927446033,-94.03893571,0.00035519,2]
[322276056,1712927446476,-225.22606517,0.00025764,2]
[322276058,1712927446486,-150.92,0.00029,2]
[322276060,1712927446495,-150.92,0.00029,2]
[322276062,1712927446504,-150.92,0.00029,2]
[322276064,1712927446513,-5570.37119453,0.00035519,2]
[322276066,1712927446528,-3482.99999999,0.00035519,2]
[322276069,1712927446540,-112.59588185,0.00035519,2]
[322276071,1712927446549,-238.91184617,0.00035519,2]
[322276073,1712927446561,-300.98999088,0.00035519,2]
[322276076,1712927446582,-150.92,0.00029,2]
[322276078,1712927446591,-104.66367185,0.00035519,2]
[322276080,1712927446603,-4293.44920053,0.00035519,2]
[322276082,1712927446612,-1788.49411486,0.00035519,2]
[322276084,1712927446621,-5039.34148358,0.00035519,2]
[322276085,1712927446630,-1852.37360094,0.00035519,2]
[322276086,1712927446641,-154.53453383,0.00035519,13]
[322276087,1712927446650,-1124.211316,0.00035519,2]
[322276088,1712927446660,-155.67762889,0.00035555,7]
[322276089,1712927446670,-3000.0,0.000356,2]
[322276090,1712927446680,-552.0,0.00035616,2]
[322276091,1712927446692,-154.95930831,0.00035617,7]
[322276092,1712927446701,-1884.95881306,0.0003562,2]
[322276093,1712927446940,-412.16066213,0.0003562,2]
[322276094,1712927446950,-2297.11947519,0.0003562,2]
[322276095,1712927446960,-2297.11947519,0.0003562,2]
[322276096,1712927446970,-2297.11947519,0.0003562,2]
[322276097,1712927446980,-2297.11947519,0.0003562,2]
[322276098,1712927446990,-2297.11947519,0.0003562,2]
[322276099,1712927447000,-2297.11947519,0.0003562,2]
[322276100,1712927447011,-2297.11947519,0.0003562,2]
[322276101,1712927447021,-2297.11947519,0.0003562,2]
[322276102,1712927447030,-1439.49979035,0.0003562,2]
[322276103,1712927447047,-150.92,0.00029,2]
[322276104,1712927447056,-857.61968484,0.0003562,2]
[322276105,1712927447066,-2297.11947519,0.0003562,2]
[322276106,1712927447075,-2297.11947519,0.0003562,2]
[322276107,1712927447085,-2297.11947519,0.0003562,2]
[322276108,1712927447094,-126.67390831,0.0003562,2]
[322276109,1712927447208,-300.63404269,0.0003562,2]
[322276119,1712927955622,200161.71239789,0.0003,120]
[322276170,1712928631745,-351.68374011,0.00020631,2]
[322276172,1712928631807,-289.0091522,0.00020631,2]
[322276173,1712928631817,-2211.61171423,0.00020632,2]
[322276174,1712928631826,-328.0,0.00020636,2]
[322276175,1712928631837,-300.0,0.00020672,2]
[322276176,1712928631847,-4169.17913357,0.00020772,2]
[322276177,1712928631869,-74310.80176643,0.00020772,2]
[322276178,1712928631878,-678.77345799,0.000209,2]
[322276179,1712928631887,-380.11831501,0.00020997,2]
[322276180,1712928631897,-78507.54074737,0.00020998,2]
[322276181,1712928631906,-715.17033749,0.00021,2]
[322276182,1712928631916,-250.0,0.00021,3]
[322276183,1712928631926,-499.99,0.00021,2]
[322276184,1712928631935,-300.0,0.00023,3]
[322276185,1712928631948,-5000.0,0.000235,2]
[322276186,1712928631958,-324.64,0.00023786,2]
[322276187,1712928631967,-663.68,0.000239,2]
[322276188,1712928631977,-224.56351414,0.00024,2]
[322276189,1712928631985,-809.98323038,0.0002409,2]
[322276190,1712928631995,-809.98323039,0.0002409,2]
[322276191,1712928632004,-1554.0,0.000241,2]
[322276192,1712928632015,-678.77345794,0.00024133,2]
[322276193,1712928632025,-2224.33193293,0.000248,2]
[322276194,1712928632034,-2604.28990565,0.00025,2]
[322276195,1712928632044,-1362.16740246,0.00025,2]
[322276196,1712928632053,-350.0,0.00025,3]
[322276197,1712928632063,-2500.0,0.00025674,2]
[322276198,1712928632072,-207.27,0.0002571,2]
[322276199,1712928632082,-239.8411658,0.00025763,2]
[322276200,1712928632091,-250.0,0.00025904,2]
[322276201,1712928632101,-324.64,0.0002605,2]
[322276202,1712928632110,-1000.0,0.00027,2]
[322276204,1712928632119,-1000.0,0.00027084,2]
[322276206,1712928632129,-250.0,0.0002717,2]
[322276208,1712928632138,-153.73,0.00027189,2]
[322276210,1712928632147,-500.0,0.00027193,2]
[322276212,1712928632156,-678.77345794,0.00027367,2]
[322276214,1712928632165,-244.75,0.00027397,2]
[322276216,1712928632175,-156.56,0.00027397,2]
[322276218,1712928632184,-2921.01087076,0.00027686,2]
[322276220,1712928632207,-339.76818,0.00027686,2]
[322276221,1712928632218,-950.0,0.00027686,2]
[322276222,1712928632234,-7651.50972279,0.00027686,2]
[322276223,1712928632255,-2039.63935739,0.00027686,2]
[322276224,1712928632267,-2719.05049637,0.00027686,2]
[322276225,1712928632279,-3428.0,0.00027686,2]
[322276226,1712928632295,-979.38,0.00027686,2]
[322276235,1712928637747,-2871.64137269,0.00027686,2]
[322276236,1712928637757,-3251.43423141,0.00027845,3]
[322276237,1712928637767,-4000.0,0.00027945,5]
[322276238,1712928637776,-20180.30698704,0.00028,2]
[322276239,1712928637786,-1021.62943384,0.00028,2]
[322276240,1712928637795,-324.64,0.00028314,2]
[322276241,1712928637805,-207.27,0.0002845,2]
[322276242,1712928637815,-500.0,0.000289,2]
[322276243,1712928637825,-263.14267461,0.00028997,2]
[322276244,1712928637835,-155.0,0.00028998,2]
[322276245,1712928637845,-674.0664593,0.00028998,2]
[322276246,1712928637855,-160.69988696,0.00028998,2]
[322276247,1712928637864,-1952.81860322,0.00028998,2]
[322276248,1712928637874,-326.22619507,0.00028998,2]
[322276249,1712928637883,-231.05357378,0.00028998,2]
[322276250,1712928637893,-1000.0,0.00028998,2]
[322276251,1712928637902,-1000.0,0.00028998,2]
[322276252,1712928637911,-1000.0,0.00028998,2]
[322276253,1712928637921,-1000.0,0.00028998,2]
[322276254,1712928637931,-1000.0,0.00028998,2]
[322276255,1712928637940,-1000.0,0.00028998,2]
[322276256,1712928637952,-1000.0,0.00028998,2]
[322276257,1712928637961,-1000.0,0.00028998,2]
[322276258,1712928637971,-1000.0,0.00028998,2]
[322276259,1712928637981,-1000.0,0.00028998,2]
[322276260,1712928637992,-1000.0,0.00028998,2]
[322276261,1712928638003,-1000.0,0.00028998,2]
[322276262,1712928638012,-1000.0,0.00028998,2]
[322276263,1712928638021,-173.0,0.00028998,2]
[322276264,1712928638034,-1260.63443229,0.00028999,2]
[322276265,1712928638044,-6746.82289371,0.00029,2]
[322276266,1712928638054,-183.47755805,0.0003,2]
[322276267,1712928638063,-6936.52620615,0.0003,2]
[322276268,1712928638073,-5929.60949188,0.0003,3]
[322276269,1712928638547,-3392.61162817,0.0003,3]
[322276271,1712928638558,-104.54995006,0.0003,3]
[322276278,1712928639091,-198.50003748,0.0003,3]
[322276280,1712928639102,-155.0,0.0003,2]
[322276281,1712928639113,-155.0,0.0003,4]
[322276283,1712928639124,-155.0,0.0003,2]
[322276285,1712928639134,-509.0,0.00030137,2]
[322276288,1712928639144,-551.0,0.00030137,2]
[322276290,1712928639154,-180.0,0.00030258,2]
[322276291,1712928639163,-1000.0,0.0003047,2]
[322276293,1712928639174,-324.64,0.00030578,2]
[322276296,1712928639183,-678.77345794,0.000306,2]
[322276298,1712928639192,-3251.43423139,0.00030836,5]
[322276300,1712928639202,-207.27,0.0003119,2]
[322276302,1712928639212,-509.0,0.00031507,2]
[322276304,1712928639221,-611.07740058,0.000326,20]
[322276306,1712928639230,-4225.64,0.00032603,2]
[322276307,1712928639240,-10846.37,0.00032603,2]
[322276309,1712928639250,-324.64,0.00032842,2]
[322276312,1712928639260,-509.0,0.00032876,2]
[322276314,1712928639270,-150.91,0.00032877,2]
[322276316,1712928639283,-244.75,0.00033165,2]
[322276318,1712928639292,-154.59,0.000333,2]
[322276320,1712928639302,-154.59,0.000333,2]
[322276322,1712928639312,-154.59,0.000333,2]
[322276324,1712928639324,-154.59,0.000333,2]
[322276326,1712928639334,-154.59,0.000333,2]
[322276328,1712928639343,-1340.45,0.000335,2]
[322276330,1712928639352,-1340.45,0.000335,2]
[322276332,1712928639362,-1340.45,0.000335,2]
[322276334,1712928639372,-1340.45,0.000335,2]
[322276336,1712928639382,-1340.45,0.000335,2]
[322276338,1712928639393,-1340.45,0.000335,2]
[322276340,1712928639403,-1340.45,0.000335,2]
[322276342,1712928639414,-1340.45,0.000335,2]
[322276344,1712928639424,-1340.45,0.000335,2]
[322276346,1712928639434,-1340.45,0.000335,2]
[322276348,1712928639444,-1340.45,0.000335,2]
[322276350,1712928639454,-1340.45,0.000335,2]
[322276352,1712928639464,-1340.45,0.000335,2]
[322276354,1712928639474,-1340.45,0.000335,2]
[322276356,1712928639484,-1340.45,0.000335,2]
[322276358,1712928639495,-1340.45,0.000335,2]
[322276361,1712928639505,-1340.45,0.000335,2]
[322276363,1712928639515,-1340.45,0.000335,2]
[322276365,1712928639525,-1340.45,0.000335,2]
[322276367,1712928639535,-1340.45,0.000335,2]
[322276369,1712928639545,-154.53423204,0.00033759,7]
[322276371,1712928639558,-3251.43423139,0.00033826,6]
[322276374,1712928639568,-678.77345794,0.00033833,2]
[322276376,1712928639578,-9647.79459678,0.00033849,2]
[322276378,1712928639589,-1000.0,0.00033855,2]
[322276380,1712928639599,-698.50835448,0.00034,2]
[322276383,1712928639612,-2145.76887824,0.00034,2]
[322276387,1712928639626,-155.72276728,0.00034,2]
[322276390,1712928639636,-784.61678272,0.0003401,2]
[322276394,1712928639649,-1637.09935816,0.0003401,2]
[322276396,1712928639662,-578.28385912,0.0003401,2]
[322276398,1712928639672,-3000.0,0.0003402,2]
[322276401,1712928639683,-4790.861264,0.0003403,2]
[322276403,1712928639692,-150.91,0.00034051,2]
[322276405,1712928639703,-1723.857658,0.000341,2]
[322276407,1712928639713,-1013.88,0.000341,2]
[322276409,1712928639723,-605.72,0.000341,2]
[322276411,1712928639733,-153.24126343,0.00034211,7]
[322276413,1712928639744,-509.0,0.00034246,2]
[322276415,1712928639754,-153.24126343,0.00034362,7]
[322276417,1712928639764,-154.26775918,0.00034495,7]
[322276419,1712928639774,-153.24126343,0.00034727,7]
[322276421,1712928639785,-150.07378321,0.00034867,2]
[322276423,1712928639794,-154.53453383,0.000349,13]
[322276425,1712928639804,-1098.95946696,0.00034908,5]
[322276428,1712928639816,-1013.88,0.0003496,2]
[322276430,1712928639826,-1000.0,0.00035,2]
[322276432,1712928639836,-23921.54713226,0.00035,7]
[322276434,1712928639849,-3028.3994897,0.00035,7]
[322276437,1712928639862,-899.81389678,0.00035,7]
[322276439,1712928639873,-324.64,0.00035105,2]
[322276441,1712928639883,-156.56,0.00035225,2]
[322276443,1712928639894,-150.91,0.00035225,2]
[322276445,1712928639904,-151.0,0.00035231,2]
[322276447,1712928639914,-484.79,0.00035288,15]
[322276449,1712928639924,-153.24126343,0.00035352,7]
[322276451,1712928639934,-150.0,0.00035434,2]
[322276453,1712928639944,-150.0,0.00035444,2]
[322276455,1712928639954,-155.67762889,0.0003549,7]
[322276458,1712928639965,-154.26775918,0.00035538,7]
[322276460,1712928639975,-154.95930831,0.00035577,7]
[322276462,1712928639985,-2250.0,0.000356,2]
[322276464,1712928639995,-509.0,0.00035616,2]
[322276466,1712928640005,-558.97170398,0.00035618,4]
[322276468,1712928640021,-31520.39556934,0.00035618,4]
[322276471,1712928640033,-746.89027862,0.00035618,4]
[322276473,1712928640045,-279.39887565,0.00035618,4]
[322276475,1712928640058,-18035.85342913,0.00035618,4]
[322276477,1712928640069,-416.78677697,0.00035618,14]
[322276480,1712928640081,-8146.85303806,0.00035618,14]
[322276482,1712928640093,-562.47043379,0.00035619,4]
[322276484,1712928640104,-155.57519765,0.00035619,4]
[322276486,1712928640114,-200.0504774,0.00035619,4]
[322276488,1712928640124,-403.617008,0.00035619,4]
[322276490,1712928640134,-89.47383395,0.0003562,2]
[322276527,1712928640566,-1910.52616605,0.0003562,2]
[322276528,1712928640576,-200.0,0.0003562,2]
[322276529,1712928640587,-0.92290192,0.0003562,2]
[322276530,1712928640600,-1999.07709808,0.0003562,2]
[322276531,1712928640610,-200.0,0.0003562,2]
[322276533,1712928640620,-1639.27187,0.0003562,2]
[322276535,1712928640631,-154.53423204,0.00035763,7]
[322276537,1712928640641,-152.32027782,0.00035798,7]
[322276538,1712928640650,-10953.556771,0.00035813,2]
[322276539,1712928640660,-1013.88,0.0003582,2]
[322276540,1712928640674,-154.781343,0.0003596,2]
[322276541,1712928640685,-2000.0,0.00035976,2]
[322276543,1712928640696,-200.0,0.00035976,2]
[322276545,1712928640706,-2000.0,0.00035976,2]
[322276547,1712928640716,-200.0,0.00035976,2]
[322276550,1712928640727,-153.99568916,0.00036191,7]
[322276552,1712928640738,-153.88565636,0.00036252,7]
[322276554,1712928640748,-10953.556771,0.00036255,2]
[322276556,1712928640758,-2000.0,0.00036336,2]
[322276557,1712928640769,-200.0,0.00036336,2]
[322276558,1712928640779,-200.0,0.00036336,2]
[322276559,1712928640790,-150.91,0.00036399,2]
[322276560,1712928640800,-706.93029155,0.00036497,2]
[322276561,1712928640819,-337.81720004,0.00036497,2]
[322276562,1712928640840,-1872.78119283,0.00036497,2]
[322276563,1712928640864,-2212.5000025,0.00036497,2]
[322276564,1712928640877,-328.89592205,0.00036497,2]
[322276565,1712928640894,-2041.07539103,0.00036497,2]
[322276566,1712928640904,-154.26775918,0.00036515,7]
[322276567,1712928640915,-154.781343,0.0003655,2]
[322276568,1712928640926,-407.98903173,0.00036558,4]
[322276569,1712928640948,-627.92595862,0.00036558,4]
[322276570,1712928640958,-184.24281591,0.00036597,2]
[322276571,1712928640969,-4591.98759457,0.00036597,2]
[322276572,1712928640981,-41406.34740543,0.00036597,2]
[322276573,1712928640992,-204.99865097,0.000366,2]
[322276574,1712928641002,-39974.5807,0.0003661,2]
[322276575,1712928641012,-1013.88,0.0003668,2]
[322276576,1712928641022,-3144.19259093,0.00036697,2]
[322276577,1712928641048,-351.8520395,0.00036697,2]
[322276578,1712928641061,-7147.91259491,0.00036697,2]
[322276579,1712928641074,-309.59954566,0.00036697,2]
[322276580,1712928641084,-8.13827645,0.00036699,2]
[322276609,1712928642775,-1991.86172355,0.00036699,2]
[322276610,1712928642785,-200.0,0.00036699,2]
[322276611,1712928642795,-200.0,0.00036699,2]
[322276612,1712928642806,-362.331097,0.00036704,10]
[322276613,1712928642816,-3251.43423139,0.00036817,8]
[322276614,1712928642826,-150.93,0.0003689,2]
[322276615,1712928642835,-1019.8353,0.00036899,2]
[322276616,1712928642845,-154.59,0.000369,3]
[322276617,1712928642856,-154.59,0.000369,3]
[322276618,1712928642866,-154.59,0.000369,3]
[322276619,1712928642877,-154.59,0.000369,3]
[322276620,1712928642887,-154.59,0.000369,3]
[322276621,1712928642897,-154.59,0.000369,3]
[322276622,1712928642907,-154.59,0.000369,3]
[322276623,1712928642917,-154.59,0.000369,3]
[322276624,1712928642927,-154.59,0.000369,3]
[322276625,1712928642936,-154.59,0.000369,3]
[322276626,1712928642947,-282.07950852,0.000369,2]
[322276627,1712928642958,-282.07950836,0.000369,2]
[322276628,1712928642968,-282.07950836,0.000369,2]
[322276629,1712928642978,-282.07950836,0.000369,2]
[322276630,1712928642988,-282.07950836,0.000369,2]
[322276631,1712928642998,-282.07950836,0.000369,2]
[322276632,1712928643008,-282.07950836,0.000369,2]
[322276633,1712928643018,-282.07950836,0.000369,2]
[322276634,1712928643028,-282.07950836,0.000369,2]
[322276635,1712928643038,-282.07950836,0.000369,2]
[322276636,1712928643048,-282.07950836,0.000369,2]
[322276637,1712928643057,-282.07950836,0.000369,2]
[322276638,1712928643068,-509.0,0.00036986,7]
[322276639,1712928643078,-3000.0,0.00037,11]
[322276640,1712928643088,-3000.0,0.0003701,11]
[322276641,1712928643098,-3000.0,0.0003702,12]
[322276642,1712928643108,-3000.0,0.0003703,12]
[322276643,1712928643118,-5919.398814,0.0003704,12]
[322276644,1712928643127,-282.07950836,0.00037053,2]
[322276645,1712928643137,-2000.0,0.00037066,2]
[322276646,1712928643147,-200.0,0.00037066,2]
[322276647,1712928643157,-678.77345794,0.00037067,2]
[322276648,1712928643167,-9647.79459678,0.00037087,2]
[322276649,1712928643177,-1340.45,0.000371,3]
[322276650,1712928643187,-1340.45,0.000371,3]
[322276651,1712928643197,-1340.45,0.000371,3]
[322276652,1712928643207,-1340.45,0.000371,3]
[322276653,1712928643217,-1340.45,0.000371,3]
[322276654,1712928643227,-1340.45,0.000371,3]
[322276655,1712928643237,-1340.45,0.000371,3]
[322276656,1712928643247,-1340.45,0.000371,3]
[322276657,1712928643257,-1340.45,0.000371,3]
[322276658,1712928643266,-1340.45,0.000371,3]
[322276659,1712928643277,-1340.45,0.000371,3]
[322276660,1712928643288,-1340.45,0.000371,3]
[322276661,1712928643299,-1340.45,0.000371,3]
[322276662,1712928643314,-1340.45,0.000371,3]
[322276663,1712928643324,-1340.45,0.000371,3]
[322276664,1712928643334,-353.38143232,0.000371,3]
[322276665,1712928643351,-987.06856768,0.000371,3]
[322276666,1712928643362,-1340.45,0.000371,3]
[322276667,1712928643372,-1340.45,0.000371,3]
[322276668,1712928643383,-1340.45,0.000371,3]
[322276669,1712928643396,-1340.45,0.000371,3]
[322276670,1712928643644,-10953.556771,0.00037139,2]
[322276671,1712928643654,-154.781343,0.00037139,2]
[322276672,1712928643663,-1000.0,0.00037241,2]
[322276673,1712928643673,-150.0,0.00037352,7]
[322276674,1712928643682,-324.64,0.00037369,2]
[322276675,1712928643692,-240.0,0.00037517,2]
[322276676,1712928643706,-150.0,0.00037517,2]
[322276677,1712928643718,-1013.88,0.0003754,2]
[322276679,1712928643727,-150.91,0.00037573,2]
[322276681,1712928643737,-156.48572997,0.00037599,7]
[322276683,1712928643746,-1000.0,0.00038,2]
[322276684,1712928643757,-484.79,0.00038027,15]
[322276685,1712928643767,-154.53423204,0.00038046,7]
[322276687,1712928643778,-153.73,0.00038064,2]
[322276688,1712928643789,-436.0,0.00038238,2]
[322276690,1712928643799,-807.0,0.00038238,2]
[322276692,1712928643811,-1947.0,0.00038238,2]
[322276693,1712928643821,-622.608,0.00038238,2]
[322276694,1712928643831,-280.0,0.00038238,2]
[322276695,1712928643841,-1156.879,0.00038238,2]
[322276696,1712928643851,-1483.258,0.00038238,2]
[322276697,1712928643862,-438.715,0.00038238,2]
[322276698,1712928643872,-151.519,0.00038238,2]
[322276699,1712928643881,-3046.979,0.00038238,2]
[322276700,1712928643890,-153.233,0.00038238,2]
[322276701,1712928643900,-2467.738,0.00038238,2]
[322276702,1712928643910,-1665.369,0.00038238,2]
[322276703,1712928643919,-214.0,0.00038238,2]
[322276704,1712928643929,-354.0,0.00038238,2]
[322276705,1712928643939,-446.046,0.00038238,2]
[322276706,1712928643948,-1401.64,0.00038238,2]
[322276707,1712928643957,-5715.0,0.00038238,2]
[322276708,1712928643967,-968.142,0.00038238,2]
[322276709,1712928643977,-4799.0,0.00038238,2]
[322276710,1712928643987,-1314.0,0.00038238,2]
[322276711,1712928643997,-37595.0,0.00038238,2]
[322276712,1712928644006,-2464.0,0.00038238,2]
[322276713,1712928644016,-464.344,0.00038238,2]
[322276714,1712928644027,-2289.0,0.00038238,2]
[322276715,1712928644036,-509.0,0.00038356,7]
[322276716,1712928644046,-282.07950836,0.00038399,2]
[322276717,1712928644055,-2250.0,0.000384,2]
[322276718,1712928644064,-1013.88,0.000384,2]
[322276719,1712928644074,-154.57743464,0.00038687,7]
[322276720,1712928644084,-150.91,0.00038748,2]
[322276721,1712928644094,-154.53423204,0.00038784,7]
[322276722,1712928644103,-4085.45526308,0.000389,15]
[322276723,1712928644113,-154.1404262,0.00038914,7]
[322276724,1712928644122,-274.62,0.00038933,2]
[322276725,1712928644131,-244.75,0.00038933,2]
[322276726,1712928644141,-200.0,0.00039099,15]
[322276727,1712928644151,-1013.88,0.0003926,2]
[322276728,1712928644161,-157.43248173,0.00039322,7]
[322276729,1712928644171,-500.0,0.00039344,5]
[322276730,1712928644180,-500.0,0.00039344,5]
[322276731,1712928644190,-500.0,0.00039344,5]
[322276732,1712928644199,-500.0,0.00039344,5]
[322276733,1712928644209,-500.0,0.00039344,5]
[322276734,1712928644219,-500.0,0.00039344,5]
[322276735,1712928644229,-343.50501481,0.00039452,13]
[322276736,1712928644238,-155.93706503,0.00039474,4]
[322276737,1712928644249,-150.93,0.0003949,2]
[322276738,1712928644258,-150.93,0.0003949,2]
[322276739,1712928644268,-150.93,0.0003949,2]
[322276740,1712928644277,-170.21,0.00039499,2]
[322276741,1712928644287,-401227.57829305,0.000395,30]
[322276742,1712928644296,-153.88565636,0.0003951,7]
[322276743,1712928644307,-162.63437052,0.0003956,7]
[322276744,1712928644320,-159.5,0.00039574,2]
[322276745,1712928644330,-324.64,0.00039633,2]
[322276746,1712928644340,-154.53423204,0.00039651,7]
[322276747,1712928644350,-465.0,0.00039659,5]
[322276748,1712928644360,-380.0,0.00039686,2]
[322276749,1712928644369,-380.0,0.00039692,2]
[322276750,1712928644379,-380.0,0.00039693,2]
[322276751,1712928644390,-313.91,0.00039696,2]
[322276752,1712928644400,-380.0,0.00039698,2]